[Event "*** SCC Grand Prix: Titled Tuesday Blitz"]
[Site "Chess.com"]
[Date "2020.06.23"]
[Round "2"]
[White "GianmarcoVaR"]
[Black "kingofkolkata"]
[Result "0-1"]
[WhiteElo "2401"]
[BlackElo "2191"]
[TimeControl "180+1"]
[EndTime "10:18:44 PDT"]
[Termination "kingofkolkata won by checkmate"]

1. d4 {[%clk 0:00:41.3]} 1... d5 {[%clk 0:02:55.9]} 2. Nf3 {[%clk 0:00:38.2]}
2... Nf6 {[%clk 0:02:55.9]} 3. Bf4 {[%clk 0:00:38.6]} 3... c5 {[%clk 0:02:54.8]}
4. e3 {[%clk 0:00:39]} 4... Nc6 {[%clk 0:02:55.2]} 5. c3 {[%clk 0:00:37.9]} 5...
Qb6 {[%clk 0:02:55.2]} 6. Qb3 {[%clk 0:00:36.7]} 6... c4 {[%clk 0:02:55]} 7.
Qxb6 {[%clk 0:00:34.9]} 7... axb6 {[%clk 0:02:55.9]} 8. Na3 {[%clk 0:00:33.7]}
8... e5 {[%clk 0:02:03.3]} 9. Nxe5 {[%clk 0:00:27.7]} 9... Bxa3 {[%clk
0:02:01.3]} 10. bxa3 {[%clk 0:00:28.3]} 10... Ne4 {[%clk 0:01:51.8]} 11. Bxc4
{[%clk 0:00:17.4]} 11... dxc4 {[%clk 0:01:45.5]} 12. Nxc4 {[%clk 0:00:18.3]}
12... Be6 {[%clk 0:01:33.1]} 13. Nxb6 {[%clk 0:00:15.5]} 13... Ra6 {[%clk
0:01:14]} 14. d5 {[%clk 0:00:14.5]} 14... Rxb6 {[%clk 0:01:13.7]} 15. dxe6
{[%clk 0:00:15.4]} 15... fxe6 {[%clk 0:01:13.3]} 16. c4 {[%clk 0:00:13.1]} 16...
O-O {[%clk 0:01:04.6]} 17. f3 {[%clk 0:00:13.6]} 17... Nf6 {[%clk 0:00:49.8]}
18. Bd6 {[%clk 0:00:05.5]} 18... Rd8 {[%clk 0:00:48.3]} 19. Bc7 {[%clk
0:00:05.9]} 19... Rb2 {[%clk 0:00:45.1]} 20. Bxd8 {[%clk 0:00:06.2]} 20... Nxd8
{[%clk 0:00:46]} 21. O-O {[%clk 0:00:06.5]} 21... Nc6 {[%clk 0:00:46.3]} 22.
Rfb1 {[%clk 0:00:04.5]} 22... Rc2 {[%clk 0:00:36.9]} 23. Rxb7 {[%clk 0:00:03.6]}
23... Rxc4 {[%clk 0:00:37.1]} 24. Rd1 {[%clk 0:00:01.6]} 24... h5 {[%clk
0:00:34.6]} 25. h3 {[%clk 0:00:02.2]} 25... h4 {[%clk 0:00:34.3]} 26. Kh2 {[%clk
0:00:02.8]} 26... Nh5 {[%clk 0:00:33.6]} 27. Rc7 {[%clk 0:00:01.7]} 27... Ng3
{[%clk 0:00:32.2]} 28. Kg1 {[%clk 0:00:02]} 28... Rc2 {[%clk 0:00:28]} 29. a4
{[%clk 0:00:02.5]} 29... Ne2+ {[%clk 0:00:22.5]} 30. Kh2 {[%clk 0:00:01.3]}
30... Ng3 {[%clk 0:00:18.3]} 31. Re1 {[%clk 0:00:01.5]} 31... Nb4 {[%clk
0:00:15.6]} 32. Rc8+ {[%clk 0:00:02.1]} 32... Rxc8 {[%clk 0:00:14.8]} 33. Rb1
{[%clk 0:00:03]} 33... Nxa2 {[%clk 0:00:13.9]} 34. Rb2 {[%clk 0:00:03.5]} 34...
Rc1 {[%clk 0:00:13.5]} 35. Rb1 {[%clk 0:00:02.5]} 35... Rxb1 {[%clk 0:00:13.6]}
36. f4 {[%clk 0:00:01.6]} 36... Rh1# {[%clk 0:00:14.5]} 0-1

[Event "*** SCC Grand Prix: Titled Tuesday Blitz"]
[Site "Chess.com"]
[Date "2020.06.23"]
[Round "2"]
[White "bratkoo"]
[Black "KingChess345"]
[Result "1-0"]
[WhiteElo "2415"]
[BlackElo "2170"]
[TimeControl "180+1"]
[EndTime "10:18:45 PDT"]
[Termination "bratkoo won by resignation"]

1. e4 {[%clk 0:03:00.9]} 1... c5 {[%clk 0:02:58.9]} 2. Nf3 {[%clk 0:02:59.5]}
2... Nc6 {[%clk 0:02:59.1]} 3. d4 {[%clk 0:02:56.1]} 3... cxd4 {[%clk 0:03:00]}
4. Nxd4 {[%clk 0:02:55.7]} 4... Nf6 {[%clk 0:03:00.3]} 5. Nc3 {[%clk 0:02:55.4]}
5... e5 {[%clk 0:03:00.5]} 6. Ndb5 {[%clk 0:02:55.5]} 6... d6 {[%clk 0:03:00.3]}
7. Nd5 {[%clk 0:02:54.5]} 7... Nxd5 {[%clk 0:02:59.9]} 8. exd5 {[%clk
0:02:54.8]} 8... Ne7 {[%clk 0:03:00.2]} 9. c4 {[%clk 0:02:55.1]} 9... Ng6 {[%clk
0:02:58.5]} 10. Be2 {[%clk 0:02:54.4]} 10... Be7 {[%clk 0:02:51.8]} 11. O-O
{[%clk 0:02:54.3]} 11... a6 {[%clk 0:02:51]} 12. Nc3 {[%clk 0:02:54]} 12... O-O
{[%clk 0:02:49.9]} 13. Be3 {[%clk 0:02:51.6]} 13... f5 {[%clk 0:02:47.8]} 14. f3
{[%clk 0:02:52]} 14... Bg5 {[%clk 0:02:37]} 15. Bf2 {[%clk 0:02:49.1]} 15... Bh4
{[%clk 0:02:33.2]} 16. Bxh4 {[%clk 0:02:19.1]} 16... Qxh4 {[%clk 0:02:34.1]} 17.
b4 {[%clk 0:02:12.1]} 17... Re8 {[%clk 0:02:19.3]} 18. Qe1 {[%clk 0:02:11.6]}
18... Qd4+ {[%clk 0:02:10.8]} 19. Kh1 {[%clk 0:02:11.2]} 19... Bd7 {[%clk
0:02:09.3]} 20. Rd1 {[%clk 0:02:08.5]} 20... Qb6 {[%clk 0:02:07.7]} 21. a3
{[%clk 0:02:02]} 21... a5 {[%clk 0:02:04.7]} 22. b5 {[%clk 0:01:37]} 22... Rac8
{[%clk 0:01:50.7]} 23. Na4 {[%clk 0:01:36.5]} 23... Qd8 {[%clk 0:01:48.6]} 24.
Qf2 {[%clk 0:01:28.3]} 24... Nf4 {[%clk 0:01:37.8]} 25. Nb6 {[%clk 0:01:25.2]}
25... Rc5 {[%clk 0:01:33.9]} 26. Na4 {[%clk 0:01:25.5]} 26... Rc8 {[%clk
0:01:32.5]} 27. Rc1 {[%clk 0:01:21]} 27... Qg5 {[%clk 0:01:19.4]} 28. Nb6 {[%clk
0:01:16.9]} 28... Rc7 {[%clk 0:01:18.2]} 29. c5 {[%clk 0:01:13.4]} 29... Nxe2
{[%clk 0:01:02.6]} 30. Qxe2 {[%clk 0:01:12.7]} 30... dxc5 {[%clk 0:00:58]} 31.
d6 {[%clk 0:01:12.5]} 31... Rcc8 {[%clk 0:00:35.9]} 32. Nxd7 {[%clk 0:01:11.2]}
32... Rcd8 {[%clk 0:00:36]} 33. Nxc5 {[%clk 0:01:05.9]} 33... Rxd6 {[%clk
0:00:35.9]} 34. Nxb7 {[%clk 0:01:05.1]} 34... Rg6 {[%clk 0:00:33.1]} 35. Nxa5
{[%clk 0:01:03.7]} 35... h5 {[%clk 0:00:29.5]} 36. Nc4 {[%clk 0:01:01]} 36... h4
{[%clk 0:00:28.2]} 37. h3 {[%clk 0:01:01.2]} 37... e4 {[%clk 0:00:21.7]} 38. f4
{[%clk 0:01:00.9]} 38... Qg3 {[%clk 0:00:20.4]} 39. Ne5 {[%clk 0:00:58.3]} 39...
Rd6 {[%clk 0:00:16.4]} 40. Rcd1 {[%clk 0:00:47.1]} 40... Rb6 {[%clk 0:00:14.9]}
41. a4 {[%clk 0:00:46.2]} 41... Ra8 {[%clk 0:00:13.8]} 42. Qa2+ {[%clk
0:00:41.3]} 42... Kh7 {[%clk 0:00:12.7]} 43. a5 {[%clk 0:00:41.5]} 43... Rxb5
{[%clk 0:00:11.9]} 44. a6 {[%clk 0:00:37.7]} 44... Rab8 {[%clk 0:00:11.4]} 45.
Rd2 {[%clk 0:00:31.4]} 45... e3 {[%clk 0:00:11.1]} 46. Re2 {[%clk 0:00:30.5]}
46... Rb2 {[%clk 0:00:05.1]} 47. Rxb2 {[%clk 0:00:26.9]} 47... Rxb2 {[%clk
0:00:06]} 48. Qxb2 {[%clk 0:00:25]} 1-0

[Event "*** SCC Grand Prix: Titled Tuesday Blitz"]
[Site "Chess.com"]
[Date "2020.06.23"]
[Round "2"]
[White "jaskol95"]
[Black "1977Ivan"]
[Result "0-1"]
[WhiteElo "2400"]
[BlackElo "2672"]
[TimeControl "180+1"]
[EndTime "10:18:46 PDT"]
[Termination "1977Ivan won by resignation"]

1. d4 {[%clk 0:03:00.9]} 1... Nf6 {[%clk 0:02:59.1]} 2. c4 {[%clk 0:02:58.3]}
2... e6 {[%clk 0:02:58.9]} 3. Nf3 {[%clk 0:02:57.4]} 3... d5 {[%clk 0:02:57.7]}
4. Nc3 {[%clk 0:02:56.9]} 4... Nbd7 {[%clk 0:02:56.8]} 5. Bf4 {[%clk 0:02:48.7]}
5... dxc4 {[%clk 0:02:55]} 6. e4 {[%clk 0:02:44.2]} 6... Bb4 {[%clk 0:02:49.8]}
7. e5 {[%clk 0:02:44.4]} 7... Nd5 {[%clk 0:02:49.1]} 8. Bd2 {[%clk 0:02:44.5]}
8... N7b6 {[%clk 0:02:39.5]} 9. Be2 {[%clk 0:02:38.2]} 9... O-O {[%clk
0:02:31.2]} 10. O-O {[%clk 0:02:37.6]} 10... Be7 {[%clk 0:02:25]} 11. Ne4 {[%clk
0:02:32.7]} 11... Bd7 {[%clk 0:02:22.1]} 12. Rc1 {[%clk 0:02:29.7]} 12... Ba4
{[%clk 0:02:17.2]} 13. b3 {[%clk 0:02:28.4]} 13... cxb3 {[%clk 0:02:16.6]} 14.
axb3 {[%clk 0:02:29.3]} 14... Bc6 {[%clk 0:02:15.9]} 15. Qc2 {[%clk 0:02:26.7]}
15... h6 {[%clk 0:02:10.2]} 16. Nc5 {[%clk 0:02:19.4]} 16... Qe8 {[%clk
0:01:57.1]} 17. Rfd1 {[%clk 0:02:10.4]} 17... a5 {[%clk 0:01:46.5]} 18. Rb1
{[%clk 0:01:28.8]} 18... Nb4 {[%clk 0:01:38.4]} 19. Bxb4 {[%clk 0:01:29]} 19...
axb4 {[%clk 0:01:39.3]} 20. Nd2 {[%clk 0:01:25.5]} 20... Nd5 {[%clk 0:01:34.2]}
21. Nde4 {[%clk 0:01:23.2]} 21... Nf4 {[%clk 0:01:27.5]} 22. Bf3 {[%clk
0:01:21.5]} 22... Bxc5 {[%clk 0:01:19.7]} 23. Qxc5 {[%clk 0:01:16.1]} 23... Bxe4
{[%clk 0:01:04.2]} 24. Bxe4 {[%clk 0:01:08.6]} 24... Ne2+ {[%clk 0:01:04.7]} 25.
Kf1 {[%clk 0:01:07.7]} 25... Nc3 {[%clk 0:01:05]} 26. Bxb7 {[%clk 0:01:04.2]}
26... Rb8 {[%clk 0:00:50.5]} 27. Bc6 {[%clk 0:01:01.8]} 27... Qd8 {[%clk
0:00:41.4]} 28. Rbc1 {[%clk 0:00:56.9]} 28... Nxd1 {[%clk 0:00:40.3]} 29. Rxd1
{[%clk 0:00:57.8]} 29... Rb6 {[%clk 0:00:39.6]} 30. d5 {[%clk 0:00:56.6]} 30...
exd5 {[%clk 0:00:37.5]} 31. Bxd5 {[%clk 0:00:57.5]} 31... Qg5 {[%clk 0:00:35.2]}
32. g3 {[%clk 0:00:37.1]} 32... Rbb8 {[%clk 0:00:29.7]} 33. f4 {[%clk
0:00:36.5]} 33... Qf5 {[%clk 0:00:29.2]} 34. Kg2 {[%clk 0:00:31.6]} 34... Rbd8
{[%clk 0:00:27]} 35. Qxc7 {[%clk 0:00:24.4]} 35... Rxd5 {[%clk 0:00:24.4]} 36.
Rxd5 {[%clk 0:00:19.2]} 36... Qe4+ {[%clk 0:00:24.4]} 37. Kh3 {[%clk 0:00:19.9]}
37... Qxd5 {[%clk 0:00:24.4]} 38. g4 {[%clk 0:00:20.3]} 38... Qxb3+ {[%clk
0:00:24]} 39. Kh4 {[%clk 0:00:20.6]} 39... Qe6 {[%clk 0:00:23.6]} 40. g5 {[%clk
0:00:20.9]} 40... hxg5+ {[%clk 0:00:21.8]} 41. fxg5 {[%clk 0:00:21.8]} 41... b3
{[%clk 0:00:21.7]} 42. Qb7 {[%clk 0:00:21.6]} 42... Qc4+ {[%clk 0:00:19.6]} 43.
Kh5 {[%clk 0:00:21.4]} 43... Qe2+ {[%clk 0:00:19.5]} 44. Kh4 {[%clk 0:00:21.9]}
44... b2 {[%clk 0:00:19.4]} 45. h3 {[%clk 0:00:21.8]} 45... Qc4+ {[%clk
0:00:17.7]} 46. Kh5 {[%clk 0:00:21.9]} 46... Qc1 {[%clk 0:00:17.5]} 47. g6
{[%clk 0:00:20.8]} 47... fxg6+ {[%clk 0:00:15.4]} 48. Kxg6 {[%clk 0:00:21]}
48... b1=Q+ {[%clk 0:00:14.7]} 0-1

[Event "*** SCC Grand Prix: Titled Tuesday Blitz"]
[Site "Chess.com"]
[Date "2020.06.23"]
[Round "2"]
[White "youngKID"]
[Black "ErikRonka"]
[Result "1-0"]
[WhiteElo "2750"]
[BlackElo "2398"]
[TimeControl "180+1"]
[EndTime "10:18:46 PDT"]
[Termination "youngKID won by resignation"]

1. Nf3 {[%clk 0:03:00.9]} 1... d5 {[%clk 0:02:59.3]} 2. g3 {[%clk 0:03:01]} 2...
Nf6 {[%clk 0:02:58.5]} 3. Bg2 {[%clk 0:03:01.2]} 3... Bg4 {[%clk 0:02:59.1]} 4.
d3 {[%clk 0:03:00.6]} 4... Nbd7 {[%clk 0:02:58.2]} 5. O-O {[%clk 0:03:00.5]}
5... e5 {[%clk 0:02:57.9]} 6. Nbd2 {[%clk 0:03:00.9]} 6... Bc5 {[%clk 0:02:46]}
7. h3 {[%clk 0:02:51.5]} 7... Bh5 {[%clk 0:02:39.8]} 8. e4 {[%clk 0:02:50.9]}
8... dxe4 {[%clk 0:02:38.4]} 9. dxe4 {[%clk 0:02:49.9]} 9... O-O {[%clk
0:02:32.1]} 10. Qe1 {[%clk 0:02:48.1]} 10... c6 {[%clk 0:02:15.9]} 11. Nc4
{[%clk 0:02:39.6]} 11... Re8 {[%clk 0:01:27.4]} 12. a4 {[%clk 0:02:32.8]} 12...
a5 {[%clk 0:01:24.8]} 13. Bd2 {[%clk 0:02:26.9]} 13... b6 {[%clk 0:01:24.1]} 14.
Rd1 {[%clk 0:02:22.8]} 14... Qc7 {[%clk 0:01:17.9]} 15. Bc3 {[%clk 0:02:17.7]}
15... Bxf3 {[%clk 0:01:16.1]} 16. Bxf3 {[%clk 0:02:16.7]} 16... Nf8 {[%clk
0:01:07.5]} 17. Qe2 {[%clk 0:02:03.7]} 17... N6d7 {[%clk 0:01:02.3]} 18. Bg4
{[%clk 0:01:54.8]} 18... Ne6 {[%clk 0:00:58.6]} 19. Bxe6 {[%clk 0:01:48.5]}
19... Rxe6 {[%clk 0:00:58.4]} 20. Rd2 {[%clk 0:01:40.2]} 20... b5 {[%clk
0:00:36.1]} 21. Nxa5 {[%clk 0:01:14.6]} 21... b4 {[%clk 0:00:29.7]} 22. Nb3
{[%clk 0:01:13.7]} 22... Bxf2+ {[%clk 0:00:25.3]} 23. Qxf2 {[%clk 0:01:06]}
23... Rf6 {[%clk 0:00:25.3]} 24. Qe3 {[%clk 0:00:45.6]} 24... bxc3 {[%clk
0:00:25.6]} 25. Qxc3 {[%clk 0:00:44.8]} 25... Rxf1+ {[%clk 0:00:25.3]} 26. Kxf1
{[%clk 0:00:44.9]} 26... Rxa4 {[%clk 0:00:25]} 27. Kg2 {[%clk 0:00:25.1]} 27...
h6 {[%clk 0:00:24.5]} 28. Qd3 {[%clk 0:00:16.5]} 28... Nf6 {[%clk 0:00:22.8]}
29. Nc5 {[%clk 0:00:16.1]} 29... Rd4 {[%clk 0:00:20.7]} 30. Qe3 {[%clk
0:00:16.4]} 30... Rxd2+ {[%clk 0:00:16.5]} 31. Qxd2 {[%clk 0:00:17.3]} 31... Qb6
{[%clk 0:00:17.4]} 32. b4 {[%clk 0:00:17.4]} 32... Qb5 {[%clk 0:00:17.3]} 33. c3
{[%clk 0:00:16.6]} 33... Qc4 {[%clk 0:00:17.3]} 34. Qe3 {[%clk 0:00:15.2]} 34...
g6 {[%clk 0:00:16.3]} 35. h4 {[%clk 0:00:14.7]} 35... Qa2+ {[%clk 0:00:16]} 36.
Qf2 {[%clk 0:00:14.7]} 36... Qc4 {[%clk 0:00:16.5]} 37. Qxf6 {[%clk 0:00:14.6]}
37... Qxc3 {[%clk 0:00:15.5]} 38. Qd8+ {[%clk 0:00:11.5]} 38... Kg7 {[%clk
0:00:15.1]} 39. Qe7 {[%clk 0:00:11.6]} 39... Qd2+ {[%clk 0:00:11.5]} 40. Kh3
{[%clk 0:00:11.8]} 40... Qc3 {[%clk 0:00:10.8]} 41. Ne6+ {[%clk 0:00:11]} 1-0

[Event "*** SCC Grand Prix: Titled Tuesday Blitz"]
[Site "Chess.com"]
[Date "2020.06.23"]
[Round "2"]
[White "Shuvalov"]
[Black "akashcheck"]
[Result "1-0"]
[WhiteElo "2453"]
[BlackElo "2232"]
[TimeControl "180+1"]
[EndTime "10:18:46 PDT"]
[Termination "Shuvalov won by resignation"]

1. Nf3 {[%clk 0:03:00.9]} 1... d5 {[%clk 0:02:59.2]} 2. c4 {[%clk 0:03:00.6]}
2... c6 {[%clk 0:02:59.1]} 3. g3 {[%clk 0:03:00.6]} 3... Nf6 {[%clk 0:02:59.1]}
4. Bg2 {[%clk 0:03:00.8]} 4... g6 {[%clk 0:02:59.6]} 5. b3 {[%clk 0:03:00.3]}
5... Bg7 {[%clk 0:02:59.7]} 6. Bb2 {[%clk 0:03:00.5]} 6... O-O {[%clk
0:02:59.8]} 7. O-O {[%clk 0:03:00.4]} 7... Re8 {[%clk 0:02:58.4]} 8. d3 {[%clk
0:02:59.3]} 8... Nbd7 {[%clk 0:02:54.4]} 9. Nc3 {[%clk 0:02:57.2]} 9... e5
{[%clk 0:02:49.6]} 10. cxd5 {[%clk 0:02:56.9]} 10... Nxd5 {[%clk 0:02:43.8]} 11.
Rc1 {[%clk 0:02:55.5]} 11... Nxc3 {[%clk 0:02:39.4]} 12. Bxc3 {[%clk 0:02:54.6]}
12... Nb6 {[%clk 0:02:39.7]} 13. Ba5 {[%clk 0:02:46.8]} 13... Qd5 {[%clk
0:02:20]} 14. Qd2 {[%clk 0:02:41.7]} 14... Qd6 {[%clk 0:01:55.8]} 15. Ng5 {[%clk
0:02:37.7]} 15... Bf5 {[%clk 0:01:46.9]} 16. Ne4 {[%clk 0:02:33.6]} 16... Bxe4
{[%clk 0:01:43.8]} 17. Bxe4 {[%clk 0:02:34.5]} 17... Rad8 {[%clk 0:01:41.8]} 18.
Qb4 {[%clk 0:02:27.3]} 18... Qxb4 {[%clk 0:01:34.6]} 19. Bxb4 {[%clk 0:02:28.2]}
19... f5 {[%clk 0:01:34.9]} 20. Bg2 {[%clk 0:02:27.8]} 20... Nd5 {[%clk
0:01:31]} 21. Ba5 {[%clk 0:02:27.2]} 21... Rd7 {[%clk 0:01:27.6]} 22. e4 {[%clk
0:02:22.6]} 22... fxe4 {[%clk 0:01:09.7]} 23. dxe4 {[%clk 0:02:23.5]} 23... Nb6
{[%clk 0:00:59.1]} 24. Rfd1 {[%clk 0:02:21.6]} 24... Red8 {[%clk 0:00:57.5]} 25.
Bf3 {[%clk 0:02:18.4]} 25... Rxd1+ {[%clk 0:00:55]} 26. Rxd1 {[%clk 0:02:19.3]}
26... Rxd1+ {[%clk 0:00:54.7]} 27. Bxd1 {[%clk 0:02:20.2]} 27... Kf7 {[%clk
0:00:54.3]} 28. Bg4 {[%clk 0:02:18.5]} 28... Bf8 {[%clk 0:00:53.2]} 29. Kf1
{[%clk 0:02:16.9]} 29... Bc5 {[%clk 0:00:51.1]} 30. Ke2 {[%clk 0:02:15.8]} 30...
Ke7 {[%clk 0:00:49.9]} 31. Bc3 {[%clk 0:02:14.7]} 31... Bd6 {[%clk 0:00:44.5]}
32. Ke3 {[%clk 0:02:12.6]} 32... Nd7 {[%clk 0:00:41.8]} 33. f4 {[%clk
0:02:08.1]} 33... c5 {[%clk 0:00:39.6]} 34. a4 {[%clk 0:01:54.8]} 34... Nf6
{[%clk 0:00:31.2]} 35. Be2 {[%clk 0:01:51]} 35... Bc7 {[%clk 0:00:27.9]} 36.
fxe5 {[%clk 0:01:40.9]} 36... Nd7 {[%clk 0:00:25.2]} 37. Kf4 {[%clk 0:01:41.4]}
37... h6 {[%clk 0:00:16.2]} 38. h4 {[%clk 0:01:39.8]} 38... Nf8 {[%clk
0:00:15.3]} 39. h5 {[%clk 0:01:32.6]} 39... Ne6+ {[%clk 0:00:14.4]} 40. Kg4
{[%clk 0:01:32.1]} 40... g5 {[%clk 0:00:09.3]} 41. Bc4 {[%clk 0:01:27.1]} 41...
Nd4 {[%clk 0:00:08.7]} 42. b4 {[%clk 0:01:21]} 42... b6 {[%clk 0:00:05.7]} 43.
bxc5 {[%clk 0:01:17.8]} 43... bxc5 {[%clk 0:00:06.6]} 44. e6 {[%clk 0:01:12.2]}
44... Be5 {[%clk 0:00:05.1]} 45. a5 {[%clk 0:01:10.1]} 45... Bc7 {[%clk
0:00:04.1]} 46. a6 {[%clk 0:01:10]} 46... Be5 {[%clk 0:00:04.2]} 47. Ba5 {[%clk
0:01:07.2]} 47... Bb8 {[%clk 0:00:02.9]} 48. Bc3 {[%clk 0:00:59.9]} 48... Be5
{[%clk 0:00:02.4]} 49. Bb2 {[%clk 0:00:59.7]} 49... Bc7 {[%clk 0:00:02.3]} 50.
Ba3 {[%clk 0:00:57.1]} 50... Bd6 {[%clk 0:00:02.3]} 51. e5 {[%clk 0:00:57.3]}
51... Bxe5 {[%clk 0:00:02.6]} 52. Bxc5+ {[%clk 0:00:57.4]} 52... Kf6 {[%clk
0:00:03.1]} 53. e7 {[%clk 0:00:56.4]} 53... Ne6 {[%clk 0:00:02]} 54. Bxe6 {[%clk
0:00:55.4]} 1-0

[Event "*** SCC Grand Prix: Titled Tuesday Blitz"]
[Site "Chess.com"]
[Date "2020.06.23"]
[Round "2"]
[White "serhanberat_ozdemir"]
[Black "praveenb2002"]
[Result "1-0"]
[WhiteElo "2534"]
[BlackElo "2772"]
[TimeControl "180+1"]
[EndTime "10:18:48 PDT"]
[Termination "serhanberat_ozdemir won by resignation"]

1. e4 {[%clk 0:03:00]} 1... c6 {[%clk 0:02:59.6]} 2. d4 {[%clk 0:03:00.1]} 2...
d5 {[%clk 0:03:00.4]} 3. exd5 {[%clk 0:03:01]} 3... cxd5 {[%clk 0:03:00.3]} 4.
c4 {[%clk 0:03:01.9]} 4... Nf6 {[%clk 0:02:59.5]} 5. Nc3 {[%clk 0:03:01.7]} 5...
g6 {[%clk 0:02:59.1]} 6. Nf3 {[%clk 0:02:56.3]} 6... Bg7 {[%clk 0:02:59.6]} 7.
cxd5 {[%clk 0:02:54.4]} 7... O-O {[%clk 0:02:59.3]} 8. Bc4 {[%clk 0:02:48.6]}
8... Nbd7 {[%clk 0:02:59.6]} 9. O-O {[%clk 0:02:48]} 9... Nb6 {[%clk 0:02:59.7]}
10. Bb3 {[%clk 0:02:48.9]} 10... Nbxd5 {[%clk 0:02:59.1]} 11. Ne5 {[%clk
0:02:49.4]} 11... Be6 {[%clk 0:02:50]} 12. Qf3 {[%clk 0:02:47.4]} 12... Rc8
{[%clk 0:02:48.9]} 13. Bd2 {[%clk 0:02:47.1]} 13... a6 {[%clk 0:02:30.2]} 14.
Rac1 {[%clk 0:02:35.2]} 14... Qd6 {[%clk 0:02:25]} 15. Rfe1 {[%clk 0:02:28.2]}
15... Nxc3 {[%clk 0:02:00.2]} 16. bxc3 {[%clk 0:02:18]} 16... Bd5 {[%clk
0:01:58.6]} 17. Bxd5 {[%clk 0:02:12]} 17... Nxd5 {[%clk 0:01:59.1]} 18. c4
{[%clk 0:02:07.5]} 18... Nc7 {[%clk 0:01:27]} 19. Qxb7 {[%clk 0:01:50.9]} 19...
Qxd4 {[%clk 0:01:12.7]} 20. Bc3 {[%clk 0:01:50.8]} 20... Qf4 {[%clk 0:00:43.5]}
21. g3 {[%clk 0:01:41.7]} 21... Qg5 {[%clk 0:00:31.2]} 22. h4 {[%clk 0:01:21.9]}
22... Qh5 {[%clk 0:00:30]} 23. Nc6 {[%clk 0:01:16.6]} 23... Bxc3 {[%clk
0:00:19.5]} 24. Nxe7+ {[%clk 0:01:15]} 24... Kg7 {[%clk 0:00:19.3]} 25. Rxc3
{[%clk 0:01:15.3]} 25... Nb5 {[%clk 0:00:12.3]} 26. Rce3 {[%clk 0:00:43.3]}
26... Rxc4 {[%clk 0:00:11.1]} 27. Qxa6 {[%clk 0:00:41.4]} 27... Rc5 {[%clk
0:00:07.2]} 28. Qb6 {[%clk 0:00:36.3]} 28... Nd4 {[%clk 0:00:06.3]} 29. Qb2
{[%clk 0:00:35.9]} 29... Rd8 {[%clk 0:00:05.7]} 30. Rd3 {[%clk 0:00:19.8]} 30...
Rc4 {[%clk 0:00:05.6]} 31. Nc6 {[%clk 0:00:17.1]} 31... Rxc6 {[%clk 0:00:04.5]}
32. Rxd4 {[%clk 0:00:17.6]} 32... Rxd4 {[%clk 0:00:03.5]} 33. Qxd4+ {[%clk
0:00:18.5]} 33... Rf6 {[%clk 0:00:03.7]} 34. Re4 {[%clk 0:00:10.3]} 34... g5
{[%clk 0:00:03.8]} 35. hxg5 {[%clk 0:00:10]} 35... Qxg5 {[%clk 0:00:02.7]} 36.
Rg4 {[%clk 0:00:10.4]} 1-0

[Event "*** SCC Grand Prix: Titled Tuesday Blitz"]
[Site "Chess.com"]
[Date "2020.06.23"]
[Round "2"]
[White "Isajevsky_Anton"]
[Black "Igor_Lysyj"]
[Result "0-1"]
[WhiteElo "2503"]
[BlackElo "2752"]
[TimeControl "180+1"]
[EndTime "10:18:48 PDT"]
[Termination "Igor_Lysyj won on time"]

1. c4 {[%clk 0:03:00.1]} 1... e6 {[%clk 0:02:59.4]} 2. Nf3 {[%clk 0:02:59.5]}
2... d5 {[%clk 0:02:59.3]} 3. e3 {[%clk 0:02:59.5]} 3... dxc4 {[%clk 0:02:57.6]}
4. Bxc4 {[%clk 0:02:59]} 4... Nf6 {[%clk 0:02:57.3]} 5. O-O {[%clk 0:02:58.4]}
5... c5 {[%clk 0:02:57.5]} 6. Qe2 {[%clk 0:02:56.9]} 6... Nc6 {[%clk 0:02:56.6]}
7. Rd1 {[%clk 0:02:53.1]} 7... a6 {[%clk 0:02:52.3]} 8. a3 {[%clk 0:02:50]} 8...
Be7 {[%clk 0:02:47.3]} 9. Ba2 {[%clk 0:02:40.6]} 9... O-O {[%clk 0:02:41.2]} 10.
Nc3 {[%clk 0:02:38.1]} 10... b5 {[%clk 0:02:37.7]} 11. d4 {[%clk 0:02:35.1]}
11... Qc7 {[%clk 0:02:33.8]} 12. dxc5 {[%clk 0:02:25.7]} 12... Bxc5 {[%clk
0:02:33.1]} 13. b4 {[%clk 0:02:25.7]} 13... Be7 {[%clk 0:02:25.8]} 14. Bb2
{[%clk 0:02:25.1]} 14... Bb7 {[%clk 0:02:26]} 15. Rac1 {[%clk 0:02:24.3]} 15...
Rad8 {[%clk 0:02:24.5]} 16. Rxd8 {[%clk 0:02:13.6]} 16... Rxd8 {[%clk
0:02:23.7]} 17. h3 {[%clk 0:02:10.8]} 17... h6 {[%clk 0:02:22.7]} 18. Bb1 {[%clk
0:02:02.3]} 18... Qb6 {[%clk 0:02:17.2]} 19. Ne4 {[%clk 0:01:50.9]} 19... Nd7
{[%clk 0:01:36]} 20. Qc2 {[%clk 0:01:27.3]} 20... f5 {[%clk 0:01:29.3]} 21. Qc3
{[%clk 0:01:24.3]} 21... Nf6 {[%clk 0:01:23.8]} 22. Nc5 {[%clk 0:01:23]} 22...
Bxc5 {[%clk 0:01:23.5]} 23. bxc5 {[%clk 0:01:15.9]} 23... Qc7 {[%clk 0:01:22.9]}
24. Qb3 {[%clk 0:01:01.2]} 24... Qe7 {[%clk 0:01:18.7]} 25. Ne5 {[%clk
0:00:54.3]} 25... Nxe5 {[%clk 0:01:14.9]} 26. Bxe5 {[%clk 0:00:54]} 26... Bd5
{[%clk 0:01:14.4]} 27. Qb2 {[%clk 0:00:40.8]} 27... Rc8 {[%clk 0:01:11.9]} 28.
Bd6 {[%clk 0:00:33.9]} 28... Qf7 {[%clk 0:01:10.4]} 29. Rd1 {[%clk 0:00:27.9]}
29... Qg6 {[%clk 0:01:09.1]} 30. g3 {[%clk 0:00:16.4]} 30... Qh5 {[%clk
0:01:06.9]} 31. Rxd5 {[%clk 0:00:10.8]} 31... Nxd5 {[%clk 0:01:06.1]} 32. Kg2
{[%clk 0:00:11.2]} 32... Qf7 {[%clk 0:01:03.7]} 33. Qd4 {[%clk 0:00:08.6]} 33...
Qb7 {[%clk 0:00:51.7]} 34. e4 {[%clk 0:00:08.2]} 34... Nf6 {[%clk 0:00:50.2]}
35. f3 {[%clk 0:00:07.6]} 35... fxe4 {[%clk 0:00:49.1]} 36. fxe4 {[%clk
0:00:07.9]} 36... Re8 {[%clk 0:00:37.3]} 37. Kf3 {[%clk 0:00:06]} 37... Qc6
{[%clk 0:00:36.6]} 38. Ba2 {[%clk 0:00:05]} 38... Kh8 {[%clk 0:00:34.8]} 39. Ke3
{[%clk 0:00:05.2]} 39... e5 {[%clk 0:00:33]} 40. Qd3 {[%clk 0:00:04.1]} 40...
Qd7 {[%clk 0:00:31]} 41. g4 {[%clk 0:00:04]} 41... Qd8 {[%clk 0:00:27.7]} 42.
Kd2 {[%clk 0:00:02.7]} 42... Nh7 {[%clk 0:00:26.6]} 43. Kc2 {[%clk 0:00:02.6]}
43... Ng5 {[%clk 0:00:26.5]} 44. c6 {[%clk 0:00:01.6]} 44... Ne6 {[%clk
0:00:25.8]} 0-1